[Event "Titled Tuesday Blitz July 11 Early 2023"]
[White "Avila Jimenez, Xavier"]
[Black "Janaszak, Dawid"]
[WhiteFideId "2210533"]
[BlackFideId "1119206"]
[WhiteElo "2420"]
[BlackElo "2574"]
[Result "1/2-1/2"]
[Round "6"]
[TimeControl "180+2"]
[Date "2023.07.11"]
[WhiteClock "0:00:19"]
[BlackClock "0:00:12"]
[Board "115"]

1. d4 {[%clk 0:03:00]}  Nf6 {[%clk 0:02:57]} 2. c4 {[%clk 0:03:00]}  e5 {[%clk 0:02:57]} 3. dxe5 {[%clk 0:03:00]}  Ng4 {[%clk 0:02:56]} 4. Bf4 {[%clk 0:03:01]}  Nc6 {[%clk 0:02:55]} 5. Nf3 {[%clk 0:03:00]}  Bc5 {[%clk 0:02:53]} 6. e3 {[%clk 0:03:00]}  Qe7 {[%clk 0:02:54]} 7. Nbd2 {[%clk 0:02:59]}  Ngxe5 {[%clk 0:02:53]} 8. Nxe5 {[%clk 0:02:59]}  Nxe5 {[%clk 0:02:53]} 9. Be2 {[%clk 0:02:59]}  h5 {[%clk 0:02:43]} 10. h3 {[%clk 0:02:52]}  a5 {[%clk 0:02:41]} 11. O-O {[%clk 0:02:52]}  g5 {[%clk 0:02:39]} 12. Bxe5 {[%clk 0:02:40]}  Qxe5 {[%clk 0:02:39]} 13. Bxh5 {[%clk 0:02:40]}  Ra6 {[%clk 0:02:26]} 14. Nf3 {[%clk 0:02:37]}  Qg7 {[%clk 0:02:19]} 15. Nd4 {[%clk 0:02:33]}  Rf6 {[%clk 0:01:42]} 16. Bg4 {[%clk 0:02:29]}  Qg6 {[%clk 0:01:31]} 17. Re1 {[%clk 0:02:23]}  O-O {[%clk 0:01:28]} 18. Rc1 {[%clk 0:02:05]}  b6 {[%clk 0:01:26]} 19. Qc2 {[%clk 0:02:05]}  Bb4 {[%clk 0:01:04]} 20. Qxg6+ {[%clk 0:01:56]}  Rxg6 {[%clk 0:01:05]} 21. Re2 {[%clk 0:01:56]}  Re8 {[%clk 0:00:57]} 22. a3 {[%clk 0:01:50]}  Bc5 {[%clk 0:00:57]} 23. Nb5 {[%clk 0:01:50]}  c6 {[%clk 0:00:50]} 24. Nc3 {[%clk 0:01:41]}  Ba6 {[%clk 0:00:49]} 25. Bxd7 {[%clk 0:01:37]}  Rd8 {[%clk 0:00:47]} 26. Bf5 {[%clk 0:01:37]}  Rf6 {[%clk 0:00:46]} 27. Bg4 {[%clk 0:01:27]}  Bxc4 {[%clk 0:00:44]} 28. Ree1 {[%clk 0:01:27]}  Bd3 {[%clk 0:00:29]} 29. Rcd1 {[%clk 0:01:22]}  Rfd6 {[%clk 0:00:29]} 30. Rc1 {[%clk 0:01:09]}  Kf8 {[%clk 0:00:19]} 31. Bf3 {[%clk 0:01:06]}  b5 {[%clk 0:00:14]} 32. Nxb5 {[%clk 0:01:01]}  Bxb5 {[%clk 0:00:14]} 33. Rxc5 {[%clk 0:00:59]}  Rd2 {[%clk 0:00:14]} 34. Bxc6 {[%clk 0:00:55]}  Bxc6 {[%clk 0:00:14]} 35. Rxc6 {[%clk 0:00:56]}  Rxb2 {[%clk 0:00:15]} 36. Rc5 {[%clk 0:00:54]}  Rdd2 {[%clk 0:00:14]} 37. Rf1 {[%clk 0:00:53]}  f6 {[%clk 0:00:14]} 38. Rxa5 {[%clk 0:00:53]}  Ra2 {[%clk 0:00:15]} 39. a4 {[%clk 0:00:52]}  Kf7 {[%clk 0:00:13]} 40. Ra7+ {[%clk 0:00:51]}  Kg6 {[%clk 0:00:14]} 41. a5 {[%clk 0:00:52]}  Ra3 {[%clk 0:00:14]} 42. a6 {[%clk 0:00:48]}  Rda2 {[%clk 0:00:14]} 43. Kh2 {[%clk 0:00:47]}  Kf5 {[%clk 0:00:14]} 44. Kg3 {[%clk 0:00:46]}  Rb2 {[%clk 0:00:12]} 45. Rb7 {[%clk 0:00:32]}  Rxb7 {[%clk 0:00:11]} 46. axb7 {[%clk 0:00:32]}  Rb3 {[%clk 0:00:12]} 47. f3 {[%clk 0:00:30]}  Rxb7 {[%clk 0:00:12]} 48. e4+ {[%clk 0:00:30]}  Kg6 {[%clk 0:00:12]} 49. Rd1 {[%clk 0:00:30]}  Rb2 {[%clk 0:00:12]} 50. Rd6 {[%clk 0:00:29]}  Re2 {[%clk 0:00:12]} 51. Rd5 {[%clk 0:00:28]}  Kf7 {[%clk 0:00:12]} 52. Ra5 {[%clk 0:00:27]}  Ke6 {[%clk 0:00:12]} 53. Ra3 {[%clk 0:00:26]}  Kf7 {[%clk 0:00:10]} 54. f4 {[%clk 0:00:26]}  Rxe4 {[%clk 0:00:10]} 55. fxg5 {[%clk 0:00:25]}  fxg5 {[%clk 0:00:10]} 56. Rf3+ {[%clk 0:00:25]}  Kg6 {[%clk 0:00:10]} 57. Ra3 {[%clk 0:00:24]}  Rc4 {[%clk 0:00:11]} 58. Kf3 {[%clk 0:00:24]}  Rb4 {[%clk 0:00:10]} 59. Ra6+ {[%clk 0:00:23]}  Kg7 {[%clk 0:00:10]} 60. Kg3 {[%clk 0:00:22]}  Rc4 {[%clk 0:00:10]} 61. Rb6 {[%clk 0:00:22]}  Ra4 {[%clk 0:00:10]} 62. Kf3 {[%clk 0:00:21]}  Rc4 {[%clk 0:00:10]} 63. Ke3 {[%clk 0:00:21]}  Ra4 {[%clk 0:00:10]} 64. Kd3 {[%clk 0:00:22]}  Ra2 {[%clk 0:00:09]} 65. g4 {[%clk 0:00:20]}  Ra3+ {[%clk 0:00:09]} 66. Ke4 {[%clk 0:00:20]}  Rxh3 {[%clk 0:00:10]} 67. Kf5 {[%clk 0:00:20]}  Ra3 {[%clk 0:00:10]} 68. Kxg5 {[%clk 0:00:20]}  Ra5+ {[%clk 0:00:10]} 69. Kf4 {[%clk 0:00:20]}  Rc5 {[%clk 0:00:11]} 70. g5 {[%clk 0:00:19]}  Rc1 {[%clk 0:00:10]} 71. Kg4 {[%clk 0:00:19]}  Rg1+ {[%clk 0:00:10]} 72. Kf5 {[%clk 0:00:19]}  Rf1+ {[%clk 0:00:10]} 73. Kg4 {[%clk 0:00:19]}  Rg1+ {[%clk 0:00:11]} 74. Kh5 {[%clk 0:00:19]}  Rh1+ {[%clk 0:00:11]} 75. Kg4 {[%clk 0:00:19]}  Rg1+ {[%clk 0:00:12]} 1/2-1/2


[Site "https://www.chess.com"]

[Event "Titled Tuesday Blitz July 11 Early 2023"]
[White "Leebit02"]
[Black "Rios Escobar, Adan"]
[BlackFideId "3403645"]
[WhiteElo "2562"]
[BlackElo "2406"]
[Result "0-1"]
[Round "6"]
[TimeControl "180+2"]
[Date "2023.07.11"]
[WhiteClock "0:00:00"]
[BlackClock "0:00:07"]
[Board "118"]

1. e4 {[%clk 0:03:00]}  d5 {[%clk 0:02:56]} 2. exd5 {[%clk 0:03:00]}  Nf6 {[%clk 0:02:56]} 3. d4 {[%clk 0:02:58]}  Nxd5 {[%clk 0:02:56]} 4. c4 {[%clk 0:02:58]}  Nf6 {[%clk 0:02:57]} 5. Nc3 {[%clk 0:02:55]}  e5 {[%clk 0:02:56]} 6. d5 {[%clk 0:02:45]}  c6 {[%clk 0:02:48]} 7. Bg5 {[%clk 0:02:39]}  Bc5 {[%clk 0:02:36]} 8. Qd2 {[%clk 0:02:19]}  Bf5 {[%clk 0:02:02]} 9. Nf3 {[%clk 0:01:56]}  e4 {[%clk 0:01:58]} 10. Nd4 {[%clk 0:01:46]}  Bg6 {[%clk 0:01:51]} 11. Be2 {[%clk 0:01:34]}  h6 {[%clk 0:01:36]} 12. Bh4 {[%clk 0:01:34]}  O-O {[%clk 0:01:27]} 13. O-O {[%clk 0:01:32]}  Re8 {[%clk 0:00:52]} 14. a3 {[%clk 0:01:24]}  a5 {[%clk 0:00:35]} 15. Rad1 {[%clk 0:01:24]}  a4 {[%clk 0:00:33]} 16. Qf4 {[%clk 0:01:07]}  Qb6 {[%clk 0:00:29]} 17. Bxf6 {[%clk 0:01:06]}  gxf6 {[%clk 0:00:28]} 18. Qxf6 {[%clk 0:00:51]}  Nd7 {[%clk 0:00:26]} 19. Qh4 {[%clk 0:00:26]}  Bxd4 {[%clk 0:00:27]} 20. dxc6 {[%clk 0:00:25]}  bxc6 {[%clk 0:00:25]} 21. Bg4 {[%clk 0:00:24]}  Ne5 {[%clk 0:00:22]} 22. Ne2 {[%clk 0:00:22]}  Bxb2 {[%clk 0:00:19]} 23. Rb1 {[%clk 0:00:20]}  Rab8 {[%clk 0:00:16]} 24. Nf4 {[%clk 0:00:20]}  Qd4 {[%clk 0:00:10]} 25. Rfd1 {[%clk 0:00:18]}  Nd3 {[%clk 0:00:08]} 26. Qxh6 {[%clk 0:00:13]}  Nxf4 {[%clk 0:00:07]} 27. Rxd4 {[%clk 0:00:12]}  Bxd4 {[%clk 0:00:07]} 28. Rxb8 {[%clk 0:00:11]}  Rxb8 {[%clk 0:00:07]} 29. g3 {[%clk 0:00:00]}  Rb1+ {[%clk 0:00:07]} 0-1


[Site "https://www.chess.com"]

[Event "Titled Tuesday Blitz July 11 Early 2023"]
[White "Topalov, Aleksandar"]
[Black "Thecourseoisildur"]
[WhiteFideId "925659"]
[WhiteElo "2402"]
[BlackElo "2555"]
[Result "1-0"]
[Round "6"]
[TimeControl "180+2"]
[Date "2023.07.11"]
[WhiteClock "0:00:01"]
[BlackClock "0:00:04"]
[Board "119"]

1. b3 {[%clk 0:03:00]}  e5 {[%clk 0:02:58]} 2. Bb2 {[%clk 0:03:00]}  Nc6 {[%clk 0:02:58]} 3. c4 {[%clk 0:03:00]}  Nf6 {[%clk 0:02:56]} 4. e3 {[%clk 0:03:00]}  a6 {[%clk 0:02:53]} 5. Nf3 {[%clk 0:02:58]}  e4 {[%clk 0:02:52]} 6. Nd4 {[%clk 0:02:58]}  Nxd4 {[%clk 0:02:52]} 7. Bxd4 {[%clk 0:02:58]}  c5 {[%clk 0:02:48]} 8. Bb2 {[%clk 0:02:58]}  Be7 {[%clk 0:02:44]} 9. Qc2 {[%clk 0:02:57]}  O-O {[%clk 0:02:31]} 10. Nc3 {[%clk 0:02:56]}  Re8 {[%clk 0:02:25]} 11. Nxe4 {[%clk 0:02:50]}  d6 {[%clk 0:02:00]} 12. Bd3 {[%clk 0:02:46]}  h6 {[%clk 0:01:56]} 13. O-O {[%clk 0:02:45]}  b6 {[%clk 0:01:47]} 14. Ng3 {[%clk 0:02:30]}  d5 {[%clk 0:01:39]} 15. cxd5 {[%clk 0:02:19]}  Qxd5 {[%clk 0:01:37]} 16. Bxf6 {[%clk 0:01:20]}  Bxf6 {[%clk 0:01:35]} 17. Be4 {[%clk 0:01:20]}  Rxe4 {[%clk 0:01:31]} 18. Qxe4 {[%clk 0:01:18]}  Qxe4 {[%clk 0:01:31]} 19. Nxe4 {[%clk 0:01:19]}  Bxa1 {[%clk 0:01:31]} 20. Rxa1 {[%clk 0:01:18]}  Bb7 {[%clk 0:01:29]} 21. Nc3 {[%clk 0:01:08]}  Rd8 {[%clk 0:01:28]} 22. Rd1 {[%clk 0:01:08]}  b5 {[%clk 0:01:16]} 23. f3 {[%clk 0:00:59]}  Bc6 {[%clk 0:01:06]} 24. d4 {[%clk 0:00:57]}  cxd4 {[%clk 0:00:59]} 25. exd4 {[%clk 0:00:54]}  b4 {[%clk 0:00:58]} 26. Ne4 {[%clk 0:00:52]}  a5 {[%clk 0:00:44]} 27. Kf2 {[%clk 0:00:50]}  a4 {[%clk 0:00:39]} 28. bxa4 {[%clk 0:00:43]}  Bxa4 {[%clk 0:00:33]} 29. Rd2 {[%clk 0:00:43]}  Bc6 {[%clk 0:00:31]} 30. Nc5 {[%clk 0:00:40]}  Bd5 {[%clk 0:00:28]} 31. Nd3 {[%clk 0:00:38]}  b3 {[%clk 0:00:22]} 32. axb3 {[%clk 0:00:35]}  Bxb3 {[%clk 0:00:23]} 33. Ke3 {[%clk 0:00:29]}  Re8+ {[%clk 0:00:23]} 34. Kf2 {[%clk 0:00:29]}  Bc4 {[%clk 0:00:21]} 35. Ne5 {[%clk 0:00:28]}  Bd5 {[%clk 0:00:20]} 36. Nd3 {[%clk 0:00:28]}  Rd8 {[%clk 0:00:20]} 37. Nb4 {[%clk 0:00:27]}  Bb7 {[%clk 0:00:13]} 38. d5 {[%clk 0:00:24]}  Kf8 {[%clk 0:00:13]} 39. Ke3 {[%clk 0:00:25]}  Ke7 {[%clk 0:00:13]} 40. Kd4 {[%clk 0:00:25]}  Kd6 {[%clk 0:00:14]} 41. Rb2 {[%clk 0:00:17]}  Rc8 {[%clk 0:00:11]} 42. Re2 {[%clk 0:00:07]}  Ba6 {[%clk 0:00:04]} 43. Rc2 {[%clk 0:00:05]}  Rb8 {[%clk 0:00:02]} 44. Rc6+ {[%clk 0:00:05]}  Kd7 {[%clk 0:00:02]} 45. Nxa6 {[%clk 0:00:04]}  Rb2 {[%clk 0:00:02]} 46. Nc5+ {[%clk 0:00:04]}  Kd8 {[%clk 0:00:01]} 47. Rd6+ {[%clk 0:00:04]}  Ke7 {[%clk 0:00:01]} 48. Rd7+ {[%clk 0:00:03]}  Ke8 {[%clk 0:00:02]} 49. Ra7 {[%clk 0:00:02]}  Rd2+ {[%clk 0:00:02]} 50. Ke5 {[%clk 0:00:02]}  Rxg2 {[%clk 0:00:01]} 51. d6 {[%clk 0:00:01]}  f6+ {[%clk 0:00:01]} 52. Ke6 {[%clk 0:00:01]}  Re2+ {[%clk 0:00:02]} 53. Kd5 {[%clk 0:00:01]}  Kf8 {[%clk 0:00:01]} 54. Ra8+ {[%clk 0:00:01]}  Kf7 {[%clk 0:00:01]} 55. d7 {[%clk 0:00:01]}  Rd2+ {[%clk 0:00:02]} 56. Kc6 {[%clk 0:00:02]}  Ke7 {[%clk 0:00:03]} 57. d8=Q+ {[%clk 0:00:02]}  Kf7 {[%clk 0:00:04]} 58. Qe8# {[%clk 0:00:01]} 1-0


[Site "https://www.chess.com"]

[Event "Titled Tuesday Blitz July 11 Early 2023"]
[White "cedchass2006"]
[Black "Chernomordik, Pavel"]
[BlackFideId "2804530"]
[WhiteElo "2398"]
[BlackElo "2551"]
[Result "1/2-1/2"]
[Round "6"]
[TimeControl "180+2"]
[Date "2023.07.11"]
[WhiteClock "0:00:02"]
[BlackClock "0:00:27"]
[Board "121"]

1. e4 {[%clk 0:03:00]}  g6 {[%clk 0:02:59]} 2. d4 {[%clk 0:03:00]}  Bg7 {[%clk 0:03:00]} 3. Nf3 {[%clk 0:02:59]}  d6 {[%clk 0:03:00]} 4. Be3 {[%clk 0:02:58]}  Nf6 {[%clk 0:02:56]} 5. Nc3 {[%clk 0:02:54]}  O-O {[%clk 0:02:55]} 6. Qd2 {[%clk 0:02:53]}  b6 {[%clk 0:02:47]} 7. Bh6 {[%clk 0:02:51]}  c5 {[%clk 0:02:47]} 8. h4 {[%clk 0:02:48]}  Bg4 {[%clk 0:02:45]} 9. h5 {[%clk 0:02:37]}  Bxh5 {[%clk 0:02:43]} 10. Be2 {[%clk 0:02:30]}  cxd4 {[%clk 0:02:37]} 11. Nxd4 {[%clk 0:02:29]}  Bxe2 {[%clk 0:02:35]} 12. Bxg7 {[%clk 0:02:26]}  Kxg7 {[%clk 0:02:35]} 13. Qh6+ {[%clk 0:02:24]}  Kg8 {[%clk 0:02:34]} 14. Ndxe2 {[%clk 0:02:10]}  e6 {[%clk 0:02:31]} 15. O-O-O {[%clk 0:02:07]}  Nc6 {[%clk 0:02:26]} 16. f4 {[%clk 0:01:46]}  Qe7 {[%clk 0:02:25]} 17. g4 {[%clk 0:01:25]}  Rfc8 {[%clk 0:02:00]} 18. g5 {[%clk 0:01:19]}  Nh5 {[%clk 0:01:59]} 19. Ng3 {[%clk 0:01:19]}  Qf8 {[%clk 0:01:55]} 20. Nxh5 {[%clk 0:01:16]}  gxh5 {[%clk 0:01:53]} 21. Rxh5 {[%clk 0:00:25]}  Qxh6 {[%clk 0:01:49]} 22. Rxh6 {[%clk 0:00:23]}  Kg7 {[%clk 0:01:49]} 23. Rxd6 {[%clk 0:00:21]}  Ne7 {[%clk 0:01:45]} 24. Rd7 {[%clk 0:00:20]}  Re8 {[%clk 0:01:36]} 25. Rh3 {[%clk 0:00:13]}  Ng6 {[%clk 0:01:30]} 26. Ne2 {[%clk 0:00:13]}  Re7 {[%clk 0:01:26]} 27. Rhd3 {[%clk 0:00:12]}  Rxd7 {[%clk 0:01:23]} 28. Rxd7 {[%clk 0:00:13]}  e5 {[%clk 0:01:16]} 29. f5 {[%clk 0:00:12]}  Nf4 {[%clk 0:01:15]} 30. Nxf4 {[%clk 0:00:12]}  exf4 {[%clk 0:01:15]} 31. e5 {[%clk 0:00:11]}  Kg8 {[%clk 0:01:10]} 32. Kd2 {[%clk 0:00:10]}  Re8 {[%clk 0:01:09]} 33. Rd5 {[%clk 0:00:08]}  Kg7 {[%clk 0:01:02]} 34. Ke2 {[%clk 0:00:08]}  h6 {[%clk 0:01:02]} 35. gxh6+ {[%clk 0:00:06]}  Kxh6 {[%clk 0:01:02]} 36. Kf3 {[%clk 0:00:06]}  Kg5 {[%clk 0:01:02]} 37. e6 {[%clk 0:00:06]}  fxe6 {[%clk 0:00:55]} 38. fxe6+ {[%clk 0:00:05]}  Kf6 {[%clk 0:00:55]} 39. Kxf4 {[%clk 0:00:04]}  Kxe6 {[%clk 0:00:55]} 40. Re5+ {[%clk 0:00:04]}  Kd7 {[%clk 0:00:46]} 41. Rxe8 {[%clk 0:00:05]}  Kxe8 {[%clk 0:00:47]} 42. Ke5 {[%clk 0:00:06]}  Ke7 {[%clk 0:00:47]} 43. Kd5 {[%clk 0:00:06]}  Kd7 {[%clk 0:00:47]} 44. c4 {[%clk 0:00:07]}  Kc7 {[%clk 0:00:45]} 45. c5 {[%clk 0:00:08]}  bxc5 {[%clk 0:00:36]} 46. Kxc5 {[%clk 0:00:08]}  a6 {[%clk 0:00:35]} 47. Kb4 {[%clk 0:00:08]}  Kb6 {[%clk 0:00:34]} 48. Ka4 {[%clk 0:00:08]}  a5 {[%clk 0:00:32]} 49. Kb3 {[%clk 0:00:05]}  Kb5 {[%clk 0:00:32]} 50. Kc3 {[%clk 0:00:05]}  Kc5 {[%clk 0:00:32]} 51. b3 {[%clk 0:00:06]}  Kb5 {[%clk 0:00:30]} 52. a3 {[%clk 0:00:06]}  Kc5 {[%clk 0:00:30]} 53. Kd3 {[%clk 0:00:07]}  Kd5 {[%clk 0:00:30]} 54. Ke3 {[%clk 0:00:07]}  Ke5 {[%clk 0:00:27]} 55. Kd3 {[%clk 0:00:04]}  Kd5 {[%clk 0:00:27]} 56. Kc3 {[%clk 0:00:05]}  Kc5 {[%clk 0:00:27]} 57. Kd3 {[%clk 0:00:02]}  Kd5 {[%clk 0:00:27]} 1/2-1/2


[Site "https://www.chess.com"]

[Event "Titled Tuesday Blitz July 11 Early 2023"]
[White "Rian, Kapriaga"]
[Black "Jaskolka, Tomasz"]
[WhiteFideId "7103263"]
[BlackFideId "1170791"]
[WhiteElo "2394"]
[BlackElo "2534"]
[Result "0-1"]
[Round "6"]
[TimeControl "180+2"]
[Date "2023.07.11"]
[WhiteClock "0:00:00"]
[BlackClock "0:00:24"]
[Board "122"]

1. d4 {[%clk 0:02:44]}  d5 {[%clk 0:02:58]} 2. Nf3 {[%clk 0:02:40]}  Nc6 {[%clk 0:02:55]} 3. Bf4 {[%clk 0:02:38]}  Bf5 {[%clk 0:02:55]} 4. e3 {[%clk 0:02:37]}  e6 {[%clk 0:02:55]} 5. Be2 {[%clk 0:02:32]}  Nf6 {[%clk 0:02:49]} 6. Nh4 {[%clk 0:02:28]}  Bd6 {[%clk 0:02:45]} 7. Nxf5 {[%clk 0:02:26]}  exf5 {[%clk 0:02:43]} 8. Bxd6 {[%clk 0:02:23]}  Qxd6 {[%clk 0:02:44]} 9. O-O {[%clk 0:02:23]}  a6 {[%clk 0:02:40]} 10. c4 {[%clk 0:02:19]}  dxc4 {[%clk 0:02:39]} 11. Bxc4 {[%clk 0:02:19]}  b5 {[%clk 0:02:39]} 12. Be2 {[%clk 0:02:17]}  O-O {[%clk 0:02:39]} 13. Nd2 {[%clk 0:02:13]}  f4 {[%clk 0:02:36]} 14. Rc1 {[%clk 0:02:09]}  fxe3 {[%clk 0:02:25]} 15. fxe3 {[%clk 0:02:09]}  Rad8 {[%clk 0:02:16]} 16. Bf3 {[%clk 0:01:51]}  Ne7 {[%clk 0:01:59]} 17. Qc2 {[%clk 0:01:42]}  Ned5 {[%clk 0:01:56]} 18. Rce1 {[%clk 0:01:34]}  Rfe8 {[%clk 0:01:53]} 19. Qb3 {[%clk 0:01:27]}  Nxe3 {[%clk 0:01:37]} 20. Rxe3 {[%clk 0:01:24]}  Qxd4 {[%clk 0:01:37]} 21. Ne4 {[%clk 0:01:15]}  Nd5 {[%clk 0:01:19]} 22. Re1 {[%clk 0:00:56]}  Nxe3 {[%clk 0:01:19]} 23. Rxe3 {[%clk 0:00:56]}  c5 {[%clk 0:00:45]} 24. Qc3 {[%clk 0:00:56]}  f5 {[%clk 0:00:42]} 25. Qxd4 {[%clk 0:00:09]}  cxd4 {[%clk 0:00:42]} 26. Re1 {[%clk 0:00:06]}  fxe4 {[%clk 0:00:41]} 27. Bxe4 {[%clk 0:00:06]}  d3 {[%clk 0:00:34]} 28. Bd5+ {[%clk 0:00:05]}  Kh8 {[%clk 0:00:25]} 29. Rxe8+ {[%clk 0:00:05]}  Rxe8 {[%clk 0:00:25]} 30. Kf2 {[%clk 0:00:04]}  d2 {[%clk 0:00:25]} 31. Bb3 {[%clk 0:00:00]}  Re1 {[%clk 0:00:24]} 0-1


[Site "https://www.chess.com"]

[Event "Titled Tuesday Blitz July 11 Early 2023"]
[White "Palencia Morales, Wilson Guillermo"]
[Black "Villuendas Valero, Adrian"]
[WhiteFideId "4401859"]
[BlackFideId "2262460"]
[WhiteElo "2531"]
[BlackElo "2389"]
[Result "1/2-1/2"]
[Round "6"]
[TimeControl "180+2"]
[Date "2023.07.11"]
[WhiteClock "0:00:20"]
[BlackClock "0:00:03"]
[Board "123"]

1. d4 {[%clk 0:03:00]}  e6 {[%clk 0:02:58]} 2. Nf3 {[%clk 0:02:56]}  Nf6 {[%clk 0:02:57]} 3. c4 {[%clk 0:02:55]}  Bb4+ {[%clk 0:02:55]} 4. Nbd2 {[%clk 0:02:54]}  O-O {[%clk 0:02:52]} 5. a3 {[%clk 0:02:48]}  Bxd2+ {[%clk 0:02:51]} 6. Qxd2 {[%clk 0:02:47]}  d6 {[%clk 0:02:50]} 7. b4 {[%clk 0:02:45]}  a5 {[%clk 0:02:44]} 8. b5 {[%clk 0:02:44]}  Nbd7 {[%clk 0:02:36]} 9. e3 {[%clk 0:02:43]}  e5 {[%clk 0:02:36]} 10. dxe5 {[%clk 0:02:42]}  Nxe5 {[%clk 0:02:33]} 11. Bb2 {[%clk 0:02:36]}  Nxf3+ {[%clk 0:01:50]} 12. gxf3 {[%clk 0:02:36]}  Bf5 {[%clk 0:01:47]} 13. Rg1 {[%clk 0:02:34]}  Bg6 {[%clk 0:01:45]} 14. Qd4 {[%clk 0:02:34]}  d5 {[%clk 0:01:35]} 15. O-O-O {[%clk 0:02:09]}  c6 {[%clk 0:01:28]} 16. f4 {[%clk 0:02:06]}  dxc4 {[%clk 0:01:04]} 17. Qe5 {[%clk 0:02:01]}  Qe8 {[%clk 0:00:47]} 18. f5 {[%clk 0:02:01]}  Qxe5 {[%clk 0:00:34]} 19. Bxe5 {[%clk 0:02:01]}  Bxf5 {[%clk 0:00:25]} 20. Bxf6 {[%clk 0:01:59]}  Bg6 {[%clk 0:00:25]} 21. Bd4 {[%clk 0:01:34]}  cxb5 {[%clk 0:00:23]} 22. h4 {[%clk 0:01:31]}  h5 {[%clk 0:00:22]} 23. f4 {[%clk 0:01:28]}  Kh7 {[%clk 0:00:14]} 24. Be2 {[%clk 0:01:28]}  f5 {[%clk 0:00:11]} 25. Rg5 {[%clk 0:01:27]}  Ra6 {[%clk 0:00:07]} 26. Bxh5 {[%clk 0:01:23]}  Bxh5 {[%clk 0:00:08]} 27. Rxh5+ {[%clk 0:01:23]}  Rh6 {[%clk 0:00:09]} 28. Rxh6+ {[%clk 0:01:21]}  Kxh6 {[%clk 0:00:10]} 29. Rg1 {[%clk 0:01:20]}  g6 {[%clk 0:00:10]} 30. Rg5 {[%clk 0:01:19]}  Re8 {[%clk 0:00:08]} 31. h5 {[%clk 0:01:16]}  gxh5 {[%clk 0:00:05]} 32. Rxf5 {[%clk 0:01:15]}  h4 {[%clk 0:00:03]} 33. Rg5 {[%clk 0:01:09]}  Re4 {[%clk 0:00:02]} 34. Kd2 {[%clk 0:01:09]}  b4 {[%clk 0:00:02]} 35. axb4 {[%clk 0:01:09]}  axb4 {[%clk 0:00:03]} 36. Rb5 {[%clk 0:01:06]}  c3+ {[%clk 0:00:02]} 37. Ke2 {[%clk 0:01:04]}  h3 {[%clk 0:00:02]} 38. Rb6+ {[%clk 0:00:56]}  Kh5 {[%clk 0:00:01]} 39. Kf3 {[%clk 0:00:44]}  h2 {[%clk 0:00:01]} 40. Kg2 {[%clk 0:00:40]}  c2 {[%clk 0:00:01]} 41. Bb2 {[%clk 0:00:33]}  Rxe3 {[%clk 0:00:01]} 42. Kxh2 {[%clk 0:00:32]}  Re1 {[%clk 0:00:01]} 43. Rxb7 {[%clk 0:00:26]}  c1=Q {[%clk 0:00:02]} 44. Bxc1 {[%clk 0:00:26]}  Rxc1 {[%clk 0:00:02]} 45. Rxb4 {[%clk 0:00:26]}  Kg4 {[%clk 0:00:03]} 46. Kg2 {[%clk 0:00:25]}  Rc2+ {[%clk 0:00:02]} 47. Kf1 {[%clk 0:00:25]}  Kf3 {[%clk 0:00:03]} 48. Ke1 {[%clk 0:00:23]}  Re2+ {[%clk 0:00:02]} 49. Kd1 {[%clk 0:00:23]}  Re4 {[%clk 0:00:03]} 50. Rxe4 {[%clk 0:00:22]}  Kxe4 {[%clk 0:00:03]} 51. f5 {[%clk 0:00:20]}  Kxf5 {[%clk 0:00:03]} 1/2-1/2


[Site "https://www.chess.com"]

[Event "Titled Tuesday Blitz July 11 Early 2023"]
[White "Berezin, Viktor"]
[Black "a-z30"]
[WhiteFideId "14107872"]
[WhiteElo "2521"]
[BlackElo "2383"]
[Result "0-1"]
[Round "6"]
[TimeControl "180+2"]
[Date "2023.07.11"]
[WhiteClock "0:00:04"]
[BlackClock "0:00:14"]
[Board "125"]

1. d4 {[%clk 0:02:58]}  Nf6 {[%clk 0:02:59]} 2. c4 {[%clk 0:02:51]}  e6 {[%clk 0:02:59]} 3. Nf3 {[%clk 0:02:46]}  c5 {[%clk 0:02:58]} 4. d5 {[%clk 0:02:44]}  d6 {[%clk 0:02:58]} 5. Nc3 {[%clk 0:02:37]}  g6 {[%clk 0:02:58]} 6. e4 {[%clk 0:02:36]}  Bg7 {[%clk 0:02:58]} 7. Be2 {[%clk 0:02:24]}  O-O {[%clk 0:02:55]} 8. O-O {[%clk 0:02:25]}  exd5 {[%clk 0:02:52]} 9. cxd5 {[%clk 0:02:23]}  Bg4 {[%clk 0:02:51]} 10. Nd2 {[%clk 0:02:22]}  Bxe2 {[%clk 0:02:50]} 11. Qxe2 {[%clk 0:02:23]}  a6 {[%clk 0:02:48]} 12. a4 {[%clk 0:02:21]}  Nbd7 {[%clk 0:02:46]} 13. a5 {[%clk 0:02:13]}  Re8 {[%clk 0:02:44]} 14. Nc4 {[%clk 0:02:10]}  Ne5 {[%clk 0:02:44]} 15. Nb6 {[%clk 0:02:06]}  Rb8 {[%clk 0:02:43]} 16. h3 {[%clk 0:02:06]}  Nfd7 {[%clk 0:02:31]} 17. Nba4 {[%clk 0:01:46]}  c4 {[%clk 0:02:07]} 18. b3 {[%clk 0:01:34]}  Qxa5 {[%clk 0:01:43]} 19. bxc4 {[%clk 0:01:20]}  b5 {[%clk 0:01:24]} 20. Bd2 {[%clk 0:00:48]}  bxa4 {[%clk 0:01:08]} 21. Rxa4 {[%clk 0:00:46]}  Qb6 {[%clk 0:00:59]} 22. Be3 {[%clk 0:00:31]}  Qb3 {[%clk 0:00:28]} 23. Rc1 {[%clk 0:00:14]}  Nc5 {[%clk 0:00:24]} 24. Bxc5 {[%clk 0:00:14]}  dxc5 {[%clk 0:00:24]} 25. Rxa6 {[%clk 0:00:14]}  Qxc4 {[%clk 0:00:23]} 26. Qxc4 {[%clk 0:00:12]}  Nxc4 {[%clk 0:00:23]} 27. Na4 {[%clk 0:00:11]}  Nd2 {[%clk 0:00:17]} 28. Nxc5 {[%clk 0:00:10]}  Nxe4 {[%clk 0:00:16]} 29. Nxe4 {[%clk 0:00:10]}  Rxe4 {[%clk 0:00:15]} 30. d6 {[%clk 0:00:10]}  Rd4 {[%clk 0:00:13]} 31. g3 {[%clk 0:00:06]}  Rd8 {[%clk 0:00:13]} 32. Rcc6 {[%clk 0:00:06]}  Bf8 {[%clk 0:00:12]} 33. Kg2 {[%clk 0:00:06]}  R4xd6 {[%clk 0:00:12]} 34. Rxd6 {[%clk 0:00:05]}  Rxd6 {[%clk 0:00:12]} 35. Ra2 {[%clk 0:00:05]}  Rf6 {[%clk 0:00:12]} 36. h4 {[%clk 0:00:05]}  h6 {[%clk 0:00:12]} 37. Rc2 {[%clk 0:00:05]}  Bg7 {[%clk 0:00:13]} 38. Rd2 {[%clk 0:00:05]}  Kh7 {[%clk 0:00:13]} 39. Rc2 {[%clk 0:00:06]}  Re6 {[%clk 0:00:13]} 40. Rd2 {[%clk 0:00:06]}  Bf6 {[%clk 0:00:13]} 41. Rc2 {[%clk 0:00:07]}  Re7 {[%clk 0:00:13]} 42. Rd2 {[%clk 0:00:07]}  Kg7 {[%clk 0:00:14]} 43. Rd6 {[%clk 0:00:08]}  h5 {[%clk 0:00:14]} 44. Rd2 {[%clk 0:00:08]}  Rb7 {[%clk 0:00:13]} 45. Rc2 {[%clk 0:00:09]}  Rb2 {[%clk 0:00:14]} 46. Rc4 {[%clk 0:00:07]}  Rd2 {[%clk 0:00:14]} 47. Kf3 {[%clk 0:00:04]}  Bd4 {[%clk 0:00:14]} 0-1


[Site "https://www.chess.com"]